Cogmind - Beta 16.1 @@@ ROGUE MODE // 2026.02.26 @ 17:17:51 Player: GodofBeaverz Result: Destroyed by SA-SLU(R) with Subdweller Machine Gun Performance ------------- Evolutions (0) 0 Regions Visited (2) 400 Robots Destroyed (14) 70 Value Destroyed (270) 270 Prototype IDs (0) 0 Alien Tech Used (0) 0 Bonus (0) 0 TOTAL SCORE: 740 Bonus ------- None Cogmind --------- Core Integrity 0/250 Matter 275/300 Energy 199/200 System Corruption 0% Temperature Cool (0) Movement Rolling (110) Ox2 Location -10/Subcaves Parts ------- > --- POWER (1) -------- Subdweller Power Source > --- PROPULSION (2) --- Wheel Subdweller Monowheel > --- UTILITY (2) ------ Medium Storage Unit Signal Interpreter > --- WEAPON (2) ------- Subdweller Beam Cannon > --- INVENTORY (10) --- Ion Engine Subdweller Power Source Machine Analyzer Subdweller Optics Sensor Array Utility Shielding Multitool Scrap Shield Fragment (50) Scrap Shield Fragment (49) Scrap Shield Fragment (41) Peak State ------------ > --- POWER ------------ Subdweller Power Source > --- PROPULSION ------- Wheel Subdweller Monowheel > --- UTILITY ---------- Medium Storage Unit Signal Interpreter > --- WEAPON ----------- Subdweller Laser Subdweller Beam Cannon > --- INVENTORY -------- Ion Engine Machine Analyzer Subdweller Optics Sensor Array Utility Shielding Multitool Scrap Shield Fragment Scrap Shield Fragment Scrap Shield Fragment Scrap Shield Fragment [Rating: 12] Favorites ----------- Power Ion Engine Engine Ion Engine Propulsion Aluminum Leg Leg Aluminum Leg Wheel Wheel Utility Signal Interpreter Device Sensor Array Storage Medium Storage Unit Processor Signal Interpreter Weapon Light Assault Rifle Energy Gun Subdweller Laser Energy Cannon Subdweller Beam Cannon Ballistic Gun Light Assault Rifle Launcher Grenade Launcher Special Weapon Multitool Build | -11 -10 -10 ------- Run | Yrd Mat Sub Slots Evolved . | . . . Power . | . . . Propulsion . | . . . Utility . | . . . Weapon . | . . . Parts Attached 27 | 6 12 9 Power 5 | 1 2 2 Engine 5 | 1 2 2 Core . | . . . Reactor . | . . . Propulsion 5 | 2 . 3 Treads . | . . . Leg 3 | 2 . 1 Wheel 2 | . . 2 Hover . | . . . Flight . | . . . Utility 10 | 1 9 . Device 3 | . 3 . Storage 5 | 1 4 . Processor 2 | . 2 . Hackware . | . . . Protection . | . . . Artifact . | . . . Weapon 7 | 2 1 4 Energy Gun 1 | . . 1 Energy Cannon 1 | . . 1 Ballistic Gun 3 | 2 . 1 Ballistic Cannon . | . . . Launcher 1 | . 1 . Special Weapon 1 | . . 1 Impact Weapon . | . . . Slashing Weapon . | . . . Piercing Weapon . | . . . Special Melee Weapon . | . . . Unidentified Prototypes . | . . . Parts Lost 5 | . . 5 Power . | . . . Propulsion 3 | . . 3 Utility . | . . . Weapon 2 | . . 2 Highest Loss Streak 1 | . . 1 To Critical Strikes . | . . . Average Backups 6 | 3 7 5 Power 1 | . 1 1 Propulsion 1 | 1 2 . Utility 2 | . 1 3 Weapon . | 1 2 . Tool/Special . | . . . Unused Backups 13 | . 9 4 Power 1 | . . 1 Propulsion 3 | . 3 . Utility 4 | . 1 3 Weapon 5 | . 5 . Tool/Special . | . . . Average Slot Usage (%) 95 | . 96 94 Engine 14 | . 14 14 Leg 23 | . 28 18 Wheel 2 | . . 4 Device 8 | . 8 9 Storage 7 | . 9 4 Processor 10 | . 7 14 Energy Gun 2 | . . 4 Energy Cannon 2 | . . 5 Ballistic Gun 21 | . 27 16 Peak Build Rating 12 | 6 9 12 Average Rating 7 | 4 7 8 On Entrance 4 | . 6 7 Avg Prop Armor Cover (%) 10 | . . 10 Naked Turns . | . . . Heaviest Build 89 | 10 89 27 Greatest Support 30 | 20 26 30 Greatest Overweight (x) 4 | . 4 2 Average Overweight (x) . | . . . Largest Inventory Capacity 25 | 8 25 10 Average Capacity 7 | 6 8 6 Most Carried 14 | 6 14 10 Average Carried 6 | 3 7 6 Final Capacity 10 | 8 5 10 Final Carried 10 | 6 5 10 Class Distribution -------------------- 80% | Mutant 19% | Scavenger-Mutant Dominant Class ---------------- Mutant | -10/Materials Mutant | -10/Subcaves Resources | -11 -10 -10 ----------- Run | Yrd Mat Sub Matter Collected 646 | 211 181 254 Remotely . | . . . Salvage Created 454 | 13 295 146 Parts 36 | 3 22 11 Haulers Intercepted 1 | . 1 . Recyclers Shooed . | . . . Parts Field Recycled . | . . . Retrieved Matter . | . . . Parts Self-Destructed . | . . . Prevented . | . . . Parts Restored . | . . . Kills | -11 -10 -10 ------- Run | Yrd Mat Sub Combat Hostiles Destroyed 8 | . 5 3 Guns 5 | . 5 . Cannons 3 | . . 3 Classes Destroyed 8 | 1 5 2 Worker 2 | 1 1 . Hauler 1 | . 1 . Recycler 1 | . 1 . Watcher 2 | . 2 . Swarmer 3 | . 3 . Grunt 2 | . 2 . Artisan 1 | . . 1 Subdweller 3 | . . 3 Best Kill Streak 7 | 1 7 1 Combat Bots Only 3 | . 3 1 Max Kills in Single Turn 1 | 1 1 1 Gunslinging . | . . . Exploded . | . . . Melee . | . . . Uniques/NPCs Destroyed . | . . . Combat | -11 -10 -10 -------- Run | Yrd Mat Sub Hostile Shots Fired 83 | . 23 60 Missed 27 | . 5 22 Hits 56 | . 18 38 Projectile 56 | . 18 38 Damage Taken 1017 | . 202 815 Core 275 | . 58 217 Absorbed by Shields . | . . . Core Remaining (%) 100 | 100 . . Volleys Fired 51 | 2 34 15 Largest 2 | 2 2 2 Hottest 140 | 40 50 140 Shots Fired 96 | 4 68 24 Gun 80 | 4 66 10 Cannon 14 | . . 14 Launcher 2 | . 2 . Special . | . . . Kinetic 71 | 4 66 1 Thermal 23 | . . 23 Explosive 2 | . 2 . Electromagnetic . | . . . Robot Hit Streak 9 | 1 9 9 Robot Miss Streak 4 | 1 4 3 Penetration Max . | . . . Secondary Targets 2 | . 2 . Max Gunslinging Chain 1 | . 1 . Shots Hit Robots 56 | 2 35 19 Core Hits 24 | 2 17 5 Critical Kills . | . . . Critical Parts Destroyed . | . . . Critical Strikes . | . . . Melee Attacks . | . . . Impact . | . . . Slashing . | . . . Piercing . | . . . Sneak Attacks . | . . . Combat Hostiles . | . . . Follow-up Attacks . | . . . Damage Inflicted 777 | 13 321 443 Guns 440 | 13 299 128 Cannons 315 | . . 315 Explosions 22 | . 22 . Melee . | . . . Ramming . | . . . Kinetic 312 | 13 299 . Thermal 443 | . . 443 Explosive 22 | . 22 . Electromagnetic . | . . . Impact . | . . . Slashing . | . . . Piercing . | . . . Highest Corruption . | . . . Average Corruption . | . . . Corruption Purged . | . . . Corruption Blocked . | . . . Overload Shots . | . . . Overflow Damage . | . . . Projectiles . | . . . Explosions . | . . . Melee . | . . . Knockbacks . | . . . Impact . | . . . Kinetic . | . . . Secondary . | . . . Self-Inflicted Damage . | . . . Shots . | . . . Rammed . | . . . Targets Rammed . | . . . Kicked . | . . . Crushed . | . . . Highest Temperature 153 | . 12 153 Average Temperature 45 | . 7 58 Received Heat Transfer 243 | . 36 207 Siege Activations . | . . . Martial Activations . | . . . Shielding Activations . | . . . Robots Disrupted . | . . . Combat Hostiles . | . . . Robots Corrupted . | . . . Combat Hostiles . | . . . Parts Fried . | . . . Impact Corruptions . | . . . Robots Melted . | . . . Combat Hostiles . | . . . Parts Melted . | . . . Heat Transferred 557 | . . 557 Parts Sabotaged . | . . . Parts Stolen . | . . . Parts Stripped . | . . . Power Chain Reactions . | . . . Alert | -11 -10 -10 ------- Run | Yrd Mat Sub Maximum Alert Level . | . . . Low Security (%) 100 | 100 100 . Level 1 . | . . . Level 2 . | . . . Level 3 . | . . . Level 4 . | . . . Level 5 . | . . . High Security . | . . . Max Security . | . . . Peak Influence 104 | 5 104 . Initial . | . . . Average 17 | . 20 . Influence Increases 195 | 5 190 . Destroy 0b10 Robot/C 100 | . 100 . Destroy 0b10 Robot/NC 30 | 5 25 . Destroy Leader 26 | . 26 . Disable Machine 15 | . 15 . Destroy Structure 9 | . 9 . Lose Combat Pursuer 15 | . 15 . Influence Decreases 195 | 5 190 . Time Decay 195 | 5 190 . Squads Dispatched 1 | . 1 . Investigation . | . . . Extermination . | . . . Reinforcement 1 | . 1 . Assault . | . . . Garrison . | . . . Intercept . | . . . Searches Triggered . | . . . Construction Impeded . | . . . Haulers Reinforced . | . . . Active Scanning Responses . | . . . Cargo Convoy Interrupts . | . . . Stealth | -11 -10 -10 --------- Run | Yrd Mat Sub Distress Signals 1 | . 1 . Communications Jammed . | . . . Distress Signals . | . . . Times Spotted 21 | . 13 8 Peak Tracking Total 3 | . 3 3 Tactical Retreats 2 | . 1 1 Traps | -11 -10 -10 ------- Run | Yrd Mat Sub Traps Triggered 1 | . 1 . Indirectly . | . . . Trap Hack Attempts . | . . . Triggered . | . . . Disarmed . | . . . Reprogrammed . | . . . Reused . | . . . Traps Extracted . | . . . Installed . | . . . Triggered . | . . . Machines | -11 -10 -10 ---------- Run | Yrd Mat Sub Machines Disabled 1 | . 1 . Max in Single Turn 1 | . 1 . Machines Repaired . | . . . Machines Dismantled . | . . . Machines Sabotaged . | . . . Overloaded Fab Kills . | . . . Hacking | -11 -10 -10 --------- Run | Yrd Mat Sub Machines Accessed 3 | . 1 2 Terminals 1 | . 1 . Fabricators . | . . . Repair Stations . | . . . Recycling Units . | . . . Scanalyzers . | . . . Garrison Access . | . . . Total Hacks 6 | . 3 3 Successful 5 | . 2 3 Failed 1 | . 1 . Catastrophic . | . . . Database Lockouts . | . . . Manual 2 | . . 2 Terminals 3 | . 3 . Fabricators . | . . . Repair Stations . | . . . Recycling Units . | . . . Scanalyzers . | . . . Garrison Access . | . . . Terminal Hacks 5 | . 2 3 Record 3 | . 2 1 Open Door 1 | . . 1 Release Object 1 | . . 1 Fabricator Hacks . | . . . Repair Station Hacks . | . . . Recycling Unit Hacks . | . . . Scanalyzer . | . . . Garrison Access Hacks . | . . . Unauthorized Hacks . | . . . Terminals . | . . . Fabricators . | . . . Repair Stations . | . . . Recycling Units . | . . . Scanalyzers . | . . . Garrison Access . | . . . Data Cores Recovered . | . . . Used . | . . . Hacking Detections 1 | . 1 . Full Trace Events 1 | . 1 . Feedback Events . | . . . Feedback Blocked . | . . . Robot Schematics Acquired . | . . . Robots Built . | . . . Authchips . | . . . Time . | . . . Total Robot Build Rating . | . . . Part Schematics Acquired . | . . . Parts Built . | . . . Authchips . | . . . Time . | . . . Total Part Build Rating . | . . . Part Studies Acquired . | . . . Parts Repaired . | . . . Time . | . . . Parts Recycled . | . . . Recycled Matter . | . . . Retrieved Matter . | . . . Retrieved Components . | . . . Parts Scanalyzed . | . . . Part Schematics Acquired . | . . . Parts Damaged . | . . . Bothacking | -11 -10 -10 ------------ Run | Yrd Mat Sub Used RIF Installer . | . . . Robots Hacked . | . . . Non-combat . | . . . Combat . | . . . Robot Hacks Applied . | . . . Relay Couplers Released . | . . . Fabnet Peak Effective % . | . . . Robots Rewired . | . . . Allies Hacked . | . . . Hacks Repelled . | . . . Allies | -11 -10 -10 -------- Run | Yrd Mat Sub Total Allies . | . . . Largest Group . | . . . Highest-Rated Group . | . . . Highest-Rated Ally . | . . . Total Orders . | . . . Ally Attacks . | . . . Total Damage . | . . . Kills . | . . . Allies Corrupted . | . . . Allies Melted . | . . . Intel | -11 -10 -10 ------- Run | Yrd Mat Sub Active Infowar (turns) 1294 | . 672 622 Optics 194 | . 194 . Sensors 912 | . 290 622 ECM 188 | . 188 . Robot Analysis Total . | . . . Derelict Logs Recovered 1 | . . 1 Drone Launches . | . . . Drone Recoveries . | . . . Exploration | -11 -10 -10 ------------- Run | Yrd Mat Sub Turns Passed 1975 | 141 874 960 Spaces Moved 1215 | 103 444 668 Core 22 | 22 . . Treads . | . . . Legs 982 | 81 444 457 Wheels 211 | . . 211 Hover . | . . . Flight . | . . . Fastest Speed 50 | 50 120 95 Average Speed 124 | 105 127 126 Slowest Speed 400 | 120 400 260 Overloaded Moves . | . . . Propulsion Burnouts . | . . . Robots Hopped . | . . . Potential Cave-ins . | . . . Cave-ins Triggered . | . . . Exploration Rate (%) 31 | 5 49 39 Regions Visited 2 Branch Regions 1 Pre-discovered Areas . | . . . Known Exits Taken 1 | . 1 . Unknown Exits Taken 1 | 1 . . Scrap Searched . | . . . Spaces Dug . | . . . Terrain Destroyed 9 | . 8 1 Melee . | . . . Projectile 1 | . . 1 AOE 8 | . 8 . Terrain Rammed . | . . . Walls Destroyed . | . . . Machines Disabled . | . . . Actions | -11 -10 -10 --------- Run | Yrd Mat Sub Total 1591 | 133 700 758 Wait 211 | 9 163 39 Move 1213 | 102 443 668 Hop . | . . . Pick Up 47 | 12 23 12 Fast Attach 8 | . 5 3 Attach 10 | 7 1 2 Detach 1 | 1 . . Swap 22 | . 11 11 Drop 27 | . 20 7 Fire 51 | 2 34 15 Melee . | . . . Ram . | . . . Kick . | . . . Crush . | . . . Escape Stasis . | . . . Rewire . | . . . Trap . | . . . Miscellaneous 1 | . . 1 Route ------- -11/Scrapyard -10/Materials (discovered 2 exits: *Min / *Sub) -10/Subcaves History --------- Turn | Location | Event 44 | -11/Scrapyard | Discovered new exit (range 15) 142 | -11/Scrapyard | Entered Materials 310 | -10/Materials | Build established: Mutant 842 | -10/Materials | Derelicts attacked the area 886 | -10/Materials | Discovered new exit (range 7) 994 | -10/Materials | Identified exit to Mines 1008 | -10/Materials | Discovered new exit (range 5) 1013 | -10/Materials | Identified exit to Subcaves 1016 | -10/Materials | Entered Subcaves 1017 | -10/Subcaves | Approached by a straggling Scientist 1094 | -10/Subcaves | Learned Materials trap positions 1285 | -10/Subcaves | Released subatomizers from SUBCON Basin 1501 | -10/Subcaves | Core integrity fell below 50% 1557 | -10/Subcaves | Shifting Twisted Machinery released Sub. Beam Cannon 1558 | -10/Subcaves | Shifting Twisted Machinery released Multitool 1592 | -10/Subcaves | Core integrity fell below 20% 1913 | -10/Subcaves | Build established: Scavenger-Mutant 1976 | -10/Subcaves | Destroyed by SA-SLU(R) with Subdweller Machine Gun Last Messages --------------- 01711_ 5X-QD4(u) cries out in pain. [Achievement: Art Critic] 01711_ 5X-QD4(u) destroyed. 01719_ Acquired Wheel. 01721_ Acquired 20 matter. 01751_ Acquired 6 matter. 01753_ Acquired Scrap Shield Fragment. 01860_ DL-INW(R): "MADSUB!" 01860_ Aluminum Leg destroyed. 01875_ DL-INW(R) destroyed. 01890_ Acquired Sub. Monowheel. 01891_ Acquired 33 matter. 01892_ Dropped Scrap Shield Fragment. 01894_ Acquired Sub. Power Source. 01947_ Sub. Monowheel shoots sparks and powers down. 01952_ Sub. Laser destroyed. 01969_ LQ-XNX(R) destroyed. 01973_ Sub. Beam Cannon shoots sparks and powers down. Map ----- +----------------------------------------------------+ | ?????????????????????????????????????????????????? | | ?????????????????????????????????????????????????? | | ?????????????????????????????????????????????????? | | ?????????????????????????????????????????????????? | | ?????????????????????????????????????????????????? | | ?????????????????????????????????????????????????? | | ?????????????????????????????????????????????????? | | ?????????????????????????????????????????????????? | | ???????????????????????????????????????#####??#### | | ???????????????????????????????????????? ### # | | ????????????????????????????????????????# | | ??????????????????????######????????????# | | ??????????????????##### ####????????## | | ????????????###???# # #???????## | | ?????????#### ##? #???????# | | ?????????? # #?# #???##### # | | ?????????? ;# #???## ##### | | ???????????? # #??## ##### | | ???????????????# # & #### ##### | | ???????????????## !% # ## #???# | | ???????????????# ! ##???# | | ??????????????# #; #????##### #### | | ??????????????# ### #### #????????###??# | | ??????????????# ##??# #????????????# | | ??????????? ## ##??### ??????????# | | ??????????# R @ ###??## #????????# | | ??????????# R #????# #????????# | | ?????????# #?????# #???????? | | ????????? ## ##?????? #??????? | | ?????????? #?## #???????# ?????? | | ????????? #### ## #???### ##????????#### ????? | | ??????????????##?##??????####?????????????? ????? | | ????????????????????????????????????????????#????? | | ?????????????????????????????????????????????????? | | ?????????????????????????????????????????????????? | | ?????????????????????????????????????????????????? | | ?????????????????????????????????????????????????? | | ?????????????????????????????????????????????????? | | ?????????????????????????????????????????????????? | | ?????????????????????????????????????????????????? | | ?????????????????????????????????????????????????? | | ?????????????????????????????????????????????????? | | ?????????????????????????????????????????????????? | | ?????????????????????????????????????????????????? | | ?????????????????????????????????????????????????? | | ?????????????????????????????????????????????????? | | ?????????????????????????????????????????????????? | | | | | | | +----------------------------------------------------+ Best States ------------- Heat Dissipation 25 Energy Generation 15 Energy Capacity 250 Matter Stores 300 Matter Capacity 300 Sight Range 18 Robot Scan Range 14 Terrain Scan Density 10 ECM Strength 1 Additional Mass Support 6 Evasion (%) 55 Item Schematics ----------------- None Robot Schematics ------------------ None Fabricated ------------ Nothing Repaired ---------- Nothing Studied --------- None Alien Tech Used ----------------- None Achievements -------------- Art Critic Spot Them First There's More Where That Came From Challenges ------------ None Game ------ Seed MicrowarpCoilSaw Manual? 0 Play Time 00:46:02 Cumulative 10.2 hours Start 2026.02.26 @ 16:08:46 End 2026.02.26 @ 17:17:51 Sessions 3 Manual Loads 0 Difficulty Rogue Special Mode None Game No. 10 Rogue 10 Adventurer 0 Explorer 0 Win Type - Total 0 Types 0/0/0/0/0/0/0/0/0/0 Lore% 9 Gallery% 9 Achievement% 6 Wizard Run 0 Options --------- Layout 1 ASCII 0 Keyboard 0 Movement Mouse Keybinds 0 Fullscreen 2 Font 32/Smallcaps Map View 50x35 Zoom Use 1% Tactical HUD 1 Map Filters NONE Filters NONE Steam 1 RUN: fa4005e7-e31c-4257-a033-f5c74a26bfc4